bitfinex/quotes_BTCUSD_20251231
["timestamp","ask_amount","ask_price","bid_price","bid_amount"]
[1767203235020,0.01144,87684.0,87671.0,0.2508414]
[1767203235206,0.19804795,87705.0,87675.0,0.21001062]
[1767203235522,0.61236678,87700.0,87681.0,0.21001062]
[1767203235664,0.02212691,87704.0,87680.0,0.41431883]
[1767203235665,0.01144,87704.0,87690.0,0.41431883]
[1767203235863,0.01144,87704.0,87687.0,0.22145062]
[1767203235864,0.20873531,87703.0,87687.0,0.22145062]
[1767203236064,0.41431883,87700.0,87687.0,0.22145062]
[1767203236268,0.19804795,87703.0,87687.0,0.22145062]
[1767203236473,0.0106899,87702.0,87687.0,0.22145062]
[1767203236690,0.19804795,87703.0,87687.0,0.22145062]
[1767203236911,0.01069032,87702.0,87687.0,0.22145062]
[1767203237068,0.19804795,87703.0,87687.0,0.22145062]
[1767203239553,0.19804795,87703.0,87687.0,0.28911064]
[1767203239696,0.19804795,87703.0,87690.0,0.41431883]
[1767203239893,0.01144,87704.0,87690.0,0.62236422]
[1767203240614,0.01144,87704.0,87690.0,0.20804539]
[1767203240813,0.01144,87704.0,87690.0,0.62236422]
[1767203241622,0.01144,87704.0,87690.0,0.20804539]
[1767203241826,0.01144,87704.0,87690.0,0.62236422]
[1767203243375,0.01144,87704.0,87690.0,0.20804539]
[1767203243573,0.01144,87704.0,87690.0,0.62236422]
[1767203244532,0.22341023,87704.0,87690.0,0.20804539]
[1767203244737,0.22341023,87704.0,87687.0,0.01144]
[1767203244937,0.21197023,87702.0,87687.0,0.01144]
[1767203245130,0.41431883,87700.0,87687.0,0.01144]
[1767203245513,0.21197023,87702.0,87687.0,0.01144]
[1767203246305,0.21197023,87699.0,87687.0,0.01144]
[1767203250444,0.41431883,87700.0,87687.0,0.21948539]
[1767203250643,0.22341023,87704.0,87690.0,0.41431883]
[1767203250843,0.01144,87704.0,87691.0,0.20804539]
[1767203251806,0.01788248,87715.0,87695.0,0.20804539]
[1767203251807,0.21197023,87715.0,87695.0,0.20804539]
[1767203251994,0.02211771,87714.0,87700.0,0.41431883]
[1767203252148,0.01144,87714.0,87700.0,0.41431883]
[1767203253395,0.01144,87714.0,87697.0,0.20804539]
[1767203253933,0.97628906,87720.0,87701.0,0.20804539]
[1767203254107,0.35,87720.0,87706.0,0.20804539]
[1767203255086,0.76431883,87720.0,87706.0,0.20804539]
[1767203259707,0.35,87720.0,87706.0,0.20804539]
[1767203260031,0.35,87720.0,87707.0,0.20804539]
[1767203260208,0.76431883,87720.0,87707.0,0.20804539]
[1767203261961,0.56197023,87720.0,87703.0,0.21948539]
[1767203262162,0.35,87720.0,87707.0,0.20804539]
[1767203262441,0.35,87720.0,87703.0,0.01144]
[1767203262442,0.35,87720.0,87710.0,0.62236422]
[1767203262843,0.35,87720.0,87704.0,0.23377864]
[1767203263067,0.97628906,87720.0,87704.0,0.23377864]
[1767203263488,0.56197023,87720.0,87704.0,0.23377864]
[1767203263646,0.56197023,87720.0,87705.0,0.06338042]
[1767203264251,0.56197023,87720.0,87705.0,0.27142581]
[1767203264659,0.97628906,87720.0,87705.0,0.27142581]
[1767203265816,0.56197023,87720.0,87705.0,0.20804539]
[1767203266014,0.000549,87705.0,87703.0,0.04083078]
[1767203266213,0.00055,87703.0,87700.0,0.05227078]
[1767203266427,0.21197023,87709.0,87700.0,0.01144]
[1767203269353,0.21197023,87709.0,87700.0,0.05227078]
[1767203269587,0.41431883,87710.0,87700.0,0.05227078]
[1767203269995,0.01144,87714.0,87701.0,0.20746273]
[1767203270170,0.01144,87714.0,87701.0,0.28215343]
[1767203270372,0.01144,87714.0,87701.0,0.20746273]
[1767203271000,0.01144,87714.0,87702.0,0.04083078]
[1767203271379,0.01144,87717.0,87702.0,0.04083078]
[1767203271585,0.20706785,87719.0,87702.0,0.04083078]
[1767203271786,0.01144,87718.0,87702.0,0.04083078]
[1767203271986,0.20706785,87719.0,87702.0,0.04083078]
[1767203272187,0.01144,87718.0,87702.0,0.04083078]
[1767203272389,0.20706785,87719.0,87702.0,0.04083078]
[1767203272770,0.20706785,87719.0,87702.0,0.24829351]
[1767203272969,0.01144,87718.0,87702.0,0.24829351]
[1767203273288,0.00035438,87718.0,87703.0,0.04083078]
[1767203273458,0.01179438,87718.0,87704.0,0.20746273]
[1767203273897,0.00035438,87718.0,87704.0,0.20746273]
[1767203274458,0.01179438,87718.0,87704.0,0.20746273]
[1767203275713,0.01179438,87718.0,87709.0,0.20746273]
[1767203275857,0.01179438,87718.0,87703.0,0.04083078]
[1767203275858,0.000549,87709.0,87703.0,0.04083078]
[1767203276059,0.21886223,87718.0,87703.0,0.04083078]
[1767203277305,0.21886223,87718.0,87704.0,0.04083078]
[1767203277821,0.01179438,87718.0,87704.0,0.32184389]
[1767203278025,0.01179438,87718.0,87705.0,0.20746273]
[1767203278429,0.01179438,87718.0,87705.0,0.24829351]
[1767203279420,0.01179438,87718.0,87706.0,0.24829351]
[1767203279765,0.01179438,87718.0,87707.0,0.01144]
[1767203280389,0.01179438,87718.0,87707.0,0.05227078]
[1767203281233,0.01179438,87718.0,87708.0,0.04083078]
[1767203282387,0.01179438,87718.0,87709.0,0.04083078]
[1767203283358,0.01140081,87713.0,87687.0,0.20746273]
[1767203283562,0.09831811,87717.0,87680.0,0.0002382]
[1767203283563,0.20706785,87703.0,87701.0,0.03083811]
[1767203283882,0.20706785,87701.0,87684.0,0.01144]
[1767203284080,0.41431883,87700.0,87684.0,0.01144]
[1767203284283,0.06328267,87699.0,87684.0,0.01144]
[1767203285168,0.27035052,87699.0,87684.0,0.01144]
[1767203286403,0.27035052,87699.0,87684.0,0.21890273]
[1767203286587,0.01144,87701.0,87684.0,0.21890273]
[1767203287219,0.01144,87703.0,87684.0,0.21890273]
[1767203289046,0.21850785,87703.0,87684.0,0.21890273]
[1767203290565,0.41417493,87700.0,87684.0,0.21890273]
[1767203290863,0.06326828,87699.0,87684.0,0.21890273]
[1767203291040,0.21850785,87703.0,87684.0,0.21890273]
[1767203295956,0.20706785,87699.0,87684.0,0.21890273]
[1767203296157,0.20706785,87699.0,87684.0,0.01144]
[1767203297485,0.01144,87703.0,87684.0,0.21890273]
[1767203298474,0.01144,87702.0,87684.0,0.21890273]
[1767203298674,0.01144,87702.0,87684.0,0.23030731]
[1767203299004,0.20706785,87709.0,87691.0,0.20746273]
[1767203299205,0.01144,87708.0,87693.0,0.20746273]
[1767203300104,0.22623977,87708.0,87693.0,0.20691373]
[1767203305491,0.22623977,87708.0,87692.0,0.01144]
[1767203305690,0.21479977,87702.0,87692.0,0.01144]
[1767203305845,0.21479977,87700.0,87692.0,0.01144]
[1767203307042,0.22623977,87708.0,87693.0,0.21432807]
[1767203307247,0.01144,87708.0,87693.0,0.21432807]
[1767203309060,0.21479977,87716.0,87693.0,0.21432807]
[1767203309270,0.2369215,87715.0,87693.0,0.21432807]
[1767203309471,0.22623977,87715.0,87693.0,0.21432807]
[1767203309876,0.01144,87715.0,87693.0,0.21432807]
[1767203310344,0.01144,87715.0,87693.0,0.22573148]
[1767203310546,0.01144,87715.0,87701.0,0.21432807]
[1767203310746,0.0002504,87717.0,87701.0,0.21432807]
[1767203310949,0.21479977,87716.0,87701.0,0.21432807]
[1767203312106,0.21475599,87716.0,87701.0,0.21432807]
[1767203312518,0.21475599,87716.0,87699.0,0.01144]
[1767203312722,0.21479977,87710.0,87692.0,0.06154451]
[1767203312914,0.21475803,87710.0,87693.0,0.06154451]
[1767203313030,0.21475803,87710.0,87693.0,0.27587258]
[1767203313895,0.21471437,87710.0,87694.0,0.21432807]
[1767203314050,0.01144,87711.0,87696.0,0.21432807]
[1767203314790,0.01144,87711.0,87696.0,0.22576807]
[1767203318917,0.01144,87711.0,87698.0,0.21432807]
[1767203320920,0.21505017,87717.0,87698.0,0.21432807]
[1767203321119,0.01144,87715.0,87698.0,0.21432807]
[1767203321468,0.0002504,87717.0,87701.0,0.21432807]
[1767203321874,0.01144,87716.0,87701.0,0.21432807]
[1767203322080,0.0002504,87717.0,87699.0,0.21432807]
[1767203322296,0.0002504,87717.0,87701.0,0.21432807]
[1767203322716,0.00020862,87717.0,87701.0,0.21432807]
[1767203323715,0.00016588,87717.0,87701.0,0.21432807]
[1767203323954,0.00016588,87717.0,87702.0,0.21432807]
[1767203324131,0.00016588,87717.0,87704.0,0.21432807]
[1767203325028,8.036e-05,87717.0,87704.0,0.21432807]
[1767203325485,8.036e-05,87717.0,87703.0,0.01144]
[1767203325486,0.21488013,87717.0,87703.0,0.01144]
[1767203326789,0.21479977,87712.0,87696.0,0.06154451]
[1767203326994,0.21479977,87712.0,87697.0,0.01144]
[1767203329232,0.21479977,87712.0,87697.0,0.22576807]
[1767203331796,8.036e-05,87717.0,87698.0,0.1987721]
[1767203331980,0.01144,87714.0,87698.0,0.1987721]
[1767203332156,0.01144,87714.0,87700.0,0.1987721]
[1767203332348,0.01144,87714.0,87700.0,0.19819198]
[1767203337837,0.22520856,87714.0,87698.0,0.06154451]
[1767203338177,0.21376856,87709.0,87698.0,0.06154451]
[1767203338384,0.21376856,87709.0,87697.0,0.01144]
[1767203338385,0.21376856,87709.0,87697.0,0.07298451]
[1767203339230,0.21376856,87709.0,87698.0,0.06154451]
[1767203339875,0.00055,87698.0,87697.0,0.01144]
[1767203340083,0.21376856,87708.0,87697.0,0.01144]
[1767203340756,0.21376856,87708.0,87697.0,0.01089]
[1767203341300,0.21376856,87708.0,87695.0,0.06154451]
[1767203341501,0.21376856,87708.0,87679.0,0.01151403]
[1767203341502,0.21376856,87706.0,87686.0,0.01144]
[1767203341698,0.21376856,87699.0,87686.0,0.01144]
[1767203342624,0.21376856,87699.0,87686.0,0.01153924]
[1767203345027,0.21372706,87699.0,87686.0,0.01153924]
[1767203345427,0.22520856,87705.0,87687.0,0.1987721]
[1767203345660,0.41414881,87700.0,87688.0,0.1987721]
[1767203345993,0.01139855,87708.0,87700.0,0.001099]
[1767203346269,0.01139855,87708.0,87694.0,0.1987721]
[1767203349716,0.01139855,87708.0,87694.0,0.1517721]
[1767203349925,9.186e-05,87712.0,87694.0,0.1517721]
[1767203349926,9.186e-05,87712.0,87708.0,0.001099]
[1767203350393,9.186e-05,87712.0,87702.0,0.1987721]
[1767203350974,0.41424067,87712.0,87702.0,0.1987721]
[1767203351176,9.186e-05,87712.0,87702.0,0.1987721]
[1767203351377,0.41424067,87712.0,87696.0,0.1987721]
[1767203351578,0.41414881,87710.0,87696.0,0.1987721]
[1767203351992,9.186e-05,87712.0,87696.0,0.06243609]
[1767203352197,9.186e-05,87712.0,87701.0,0.1987721]
[1767203352443,0.00035438,87718.0,87712.0,9.1e-05]
[1767203352647,0.00035438,87718.0,87709.0,0.1987721]
[1767203353606,3.8e-07,87718.0,87709.0,0.1987721]
[1767203356435,3.8e-07,87718.0,87703.0,0.01144]
[1767203356713,3.8e-07,87718.0,87703.0,0.2102121]
[1767203359673,0.06205507,87717.0,87704.0,0.04105669]
[1767203360015,0.06205507,87717.0,87703.0,0.25126879]
[1767203360227,0.33897694,87720.0,87707.0,0.41414881]
[1767203360425,0.33897694,87720.0,87711.0,0.21342042]
[1767203360426,0.30491272,87720.0,87711.0,0.21342042]
[1767203360627,0.26011272,87720.0,87711.0,0.21342042]
[1767203360827,0.26011272,87720.0,87707.0,0.04105669]
[1767203361028,0.26011272,87720.0,87710.0,0.41414881]
[1767203361232,0.26011272,87720.0,87711.0,0.06686259]
[1767203361577,0.46851839,87720.0,87711.0,0.06631359]
[1767203361717,0.46851839,87720.0,87707.0,0.04105669]
[1767203362789,0.26011272,87720.0,87710.0,0.41414881]
[1767203363775,0.26011272,87720.0,87710.0,0.34114881]
[1767203365648,0.26011272,87720.0,87709.0,0.21342042]
[1767203365881,0.26011272,87720.0,87710.0,0.41414881]
[1767203366088,0.26011272,87720.0,87711.0,0.06686259]
[1767203366330,0.46851839,87720.0,87704.0,0.04105669]
[1767203366447,0.41414881,87714.0,87704.0,0.01144]
[1767203366652,0.20840567,87713.0,87704.0,0.01144]
[1767203367791,0.20840567,87713.0,87696.0,0.00053194]
[1767203367977,0.41414881,87710.0,87696.0,0.00053194]
[1767203368382,0.20840567,87713.0,87696.0,0.00053194]
[1767203369322,0.41414881,87710.0,87696.0,0.00053194]
[1767203371819,0.20840567,87709.0,87696.0,0.00053194]
[1767203373633,0.21984567,87709.0,87697.0,0.04105669]
[1767203375337,0.21984567,87709.0,87698.0,0.04105669]
[1767203375767,0.21984567,87709.0,87697.0,0.00905669]
[1767203376618,0.21984567,87709.0,87696.0,0.00053194]
[1767203377732,0.21984567,87709.0,87690.0,0.0001457]
[1767203377733,0.20840567,87705.0,87690.0,0.0001457]
[1767203378112,0.07597949,87709.0,87690.0,0.0001457]
[1767203378113,0.20840567,87699.0,87690.0,0.0001457]
[1767203379893,0.41414881,87700.0,87690.0,0.0001457]
[1767203384102,0.21984567,87703.0,87694.0,0.03078141]
[1767203386530,0.21984567,87703.0,87694.0,0.01976146]
[1767203387736,0.21734567,87703.0,87690.0,0.0001457]
[1767203388547,0.41414881,87700.0,87690.0,0.0001457]
[1767203392967,0.20512332,87699.0,87690.0,0.0001457]
[1767203393091,0.05701824,87692.0,87690.0,0.0001457]
[1767203393294,0.05701824,87692.0,87672.0,0.0001457]
[1767203393295,0.22108808,87691.0,87673.0,0.06156508]
[1767203393537,0.41414881,87683.0,87672.0,0.22830392]
[1767203394344,0.4142174,87683.0,87672.0,0.22830392]
[1767203394948,0.20512332,87691.0,87683.0,0.00048041]
[1767203395131,0.20512332,87691.0,87683.0,0.00083479]
[1767203395530,0.20512332,87691.0,87683.0,0.00035438]
[1767203396854,0.20512332,87691.0,87676.0,0.2050726]
[1767203397062,0.41414881,87690.0,87676.0,0.2050726]
[1767203398964,0.20512332,87701.0,87676.0,0.2050726]
[1767203399166,0.41414881,87690.0,87676.0,0.2050726]
[1767203399391,0.01144,87689.0,87676.0,0.2050726]
[1767203401515,0.010959,87689.0,87676.0,0.2050726]
[1767203401921,0.41414881,87686.0,87672.0,0.0001457]
[1767203402100,0.20512332,87675.0,87664.0,0.0001457]
[1767203402335,0.61927213,87674.0,87664.0,0.0001457]
[1767203402685,0.20512332,87673.0,87664.0,0.0001457]
[1767203403012,0.41414881,87674.0,87664.0,0.0001457]
[1767203403209,0.41414881,87674.0,87662.0,0.0004371]
[1767203403409,0.41414881,87672.0,87662.0,0.0004371]
[1767203404038,0.41414881,87670.0,87659.0,0.22193732]
[1767203404972,0.20512332,87669.0,87653.0,0.0001457]
[1767203405128,0.20512332,87669.0,87654.0,0.01144]
[1767203405759,0.41414881,87664.0,87654.0,0.01144]
[1767203406138,0.20512332,87669.0,87654.0,0.22815822]
[1767203406340,0.0652772,87668.0,87654.0,0.22815822]
[1767203407583,0.0652772,87668.0,87654.0,0.21671822]
[1767203408851,0.20512332,87667.0,87653.0,0.0001457]
[1767203408984,0.000549,87654.0,87653.0,0.0001457]
[1767203409619,0.01144,87660.0,87653.0,0.0001457]
[1767203410417,0.20512332,87663.0,87660.0,0.00055]
[1767203410620,0.01144,87673.0,87661.0,0.21671822]
[1767203410818,0.01139605,87673.0,87661.0,0.21671822]
[1767203412630,8.072e-05,87675.0,87661.0,0.21671822]
[1767203412849,0.01140328,87694.0,87661.0,0.21671822]
[1767203412850,0.20354845,87686.0,87662.0,0.01144]
[1767203413049,0.01144,87685.0,87665.0,0.21671822]
[1767203416880,0.01144,87687.0,87671.0,0.21671822]
[1767203417735,0.20512332,87697.0,87673.0,0.21671822]
[1767203417934,0.01144,87694.0,87673.0,0.21671822]
[1767203420000,0.01144,87694.0,87675.0,0.21649311]
[1767203420619,0.2626485,87702.0,87672.0,0.01140615]
[1767203420620,0.2169685,87702.0,87681.0,0.21649311]
[1767203420819,0.01144,87698.0,87683.0,0.21649311]
[1767203421226,0.0001457,87702.0,87693.0,0.21663811]
[1767203421451,0.0001457,87702.0,87693.0,0.000145]
[1767203421630,0.2168228,87701.0,87682.0,0.01144]
[1767203421843,0.2168228,87699.0,87682.0,0.01144]
[1767203422047,0.2168228,87698.0,87682.0,0.011296]
[1767203422445,0.21717691,87698.0,87682.0,0.011296]
[1767203424056,0.21717691,87698.0,87677.0,0.21649311]
[1767203424257,0.21717691,87698.0,87678.0,0.01144]
[1767203424457,0.21717691,87698.0,87678.0,0.22793311]
[1767203425706,0.2168228,87697.0,87678.0,0.22793311]
[1767203426213,0.06695805,87698.0,87671.0,0.0001457]
[1767203426214,0.00055,87678.0,87677.0,0.01144]
[1767203426356,0.2168228,87684.0,87672.0,0.05243396]
[1767203426561,0.01144,87688.0,87672.0,0.01144]
[1767203426760,0.01144,87688.0,87672.0,0.22793311]
[1767203427314,0.01144,87688.0,87672.0,0.26327829]
[1767203429038,0.28378085,87698.0,87672.0,0.26327829]
[1767203430739,0.2168228,87697.0,87672.0,0.26327829]
[1767203431204,0.2168228,87697.0,87674.0,0.21649311]
[1767203431355,0.06695805,87698.0,87681.0,0.21649311]
[1767203431356,0.00035411,87698.0,87681.0,0.21649311]
[1767203431554,0.00031218,87698.0,87681.0,0.21649311]
[1767203432353,0.00031218,87698.0,87681.0,0.17549311]
[1767203434851,0.21713498,87698.0,87681.0,0.17549311]
[1767203437884,0.2168228,87690.0,87682.0,0.01144]
[1767203438089,0.2168228,87690.0,87680.0,0.01144]
[1767203439605,0.2168228,87690.0,87671.0,0.0001457]
[1767203439606,0.000549,87680.0,87671.0,0.0001457]
[1767203440021,0.2168228,87681.0,87671.0,0.0001457]
[1767203440226,0.2168228,87688.0,87671.0,0.0001457]
[1767203441869,0.2168228,87686.0,87671.0,0.0001457]
[1767203442178,0.22822712,87686.0,87671.0,0.0001457]
[1767203442390,0.2168228,87680.0,87671.0,7e-07]
[1767203447307,0.2168228,87680.0,87662.0,0.0001457]
[1767203447308,0.2168228,87671.0,87653.0,0.21663881]
[1767203447560,0.22823025,87662.0,87653.0,0.0001457]
[1767203447684,0.0002583,87653.0,87645.0,8.5e-05]
[1767203447891,0.63129554,87655.0,87640.0,0.21649311]
[1767203448091,0.41447274,87650.0,87640.0,0.21649311]
[1767203448490,0.41447274,87650.0,87640.0,0.21653503]
[1767203449128,0.2168228,87654.0,87640.0,0.21653503]
[1767203451048,0.23611364,87653.0,87640.0,4.192e-05]
[1767203451271,0.41447274,87650.0,87640.0,4.192e-05]
[1767203451652,0.23611364,87653.0,87640.0,4.192e-05]
[1767203452220,0.41447274,87650.0,87640.0,4.192e-05]
[1767203457120,0.02168228,87653.0,87650.0,0.000375]
[1767203457536,0.02168228,87653.0,87640.0,4.192e-05]
[1767203457660,0.02475536,87652.0,87640.0,4.192e-05]
[1767203459132,0.02475536,87652.0,87640.0,0.20915183]
[1767203461408,0.02168228,87653.0,87640.0,0.20915183]
[1767203462155,0.41447274,87650.0,87640.0,0.20915183]
[1767203462815,0.21443136,87658.0,87640.0,0.20915183]
[1767203463021,0.21443136,87658.0,87640.0,4.192e-05]
[1767203465911,0.21443136,87656.0,87640.0,4.192e-05]
[1767203466046,0.07988724,87659.0,87640.0,4.192e-05]
[1767203466047,0.21443136,87654.0,87640.0,4.192e-05]
[1767203466608,0.08145014,87655.0,87640.0,0.20915183]
[1767203466903,0.22587136,87659.0,87640.0,0.20915183]
[1767203468446,0.41457535,87650.0,87640.0,0.20915183]
[1767203468649,0.41420035,87650.0,87640.0,0.20915183]
[1767203468861,0.22587136,87659.0,87640.0,0.20915183]
[1767203469336,0.22587136,87659.0,87640.0,4.192e-05]
[1767203469337,0.41457535,87650.0,87640.0,4.192e-05]
[1767203470583,0.21443136,87653.0,87640.0,4.192e-05]
[1767203470787,0.41457535,87650.0,87640.0,4.192e-05]
[1767203470985,0.21443136,87649.0,87640.0,9.2e-07]
[1767203471697,0.23363893,87648.0,87640.0,9.2e-07]
[1767203475883,0.21443136,87643.0,87622.0,0.05976812]
[1767203476090,0.01068608,87647.0,87622.0,0.05976812]
[1767203476091,0.41457535,87632.0,87622.0,0.00010619]
[1767203476726,0.21443136,87631.0,87622.0,0.00010619]
[1767203477248,0.41457535,87632.0,87622.0,0.00010619]
[1767203478782,0.01457535,87632.0,87622.0,0.00010619]
[1767203479144,0.01457535,87632.0,87631.0,0.4]
[1767203479382,0.20746068,87634.0,87631.0,0.399492]
[1767203479561,0.20746068,87634.0,87617.0,0.21045286]
[1767203479761,0.41457535,87630.0,87617.0,0.21053358]
[1767203479941,0.41457535,87630.0,87629.0,0.4]
[1767203480157,0.20746068,87634.0,87629.0,0.4]
[1767203480520,0.20746068,87634.0,87617.0,0.21053358]
[1767203480889,0.20746068,87634.0,87633.0,0.4]
[1767203481094,0.20746068,87634.0,87633.0,0.39945]
[1767203483712,0.01890068,87634.0,87633.0,0.39945]
[1767203483943,0.01920757,87648.0,87633.0,0.39945]
[1767203484141,0.20480295,87651.0,87624.0,0.41457535]
[1767203484142,0.02212255,87647.0,87638.0,0.41457535]
[1767203484275,0.01068255,87646.0,87634.0,0.19445849]
[1767203484615,0.01068255,87646.0,87645.0,0.4]
[1767203485798,0.01068255,87646.0,87645.0,0.40008072]
[1767203486516,0.01144,87647.0,87645.0,0.40008072]
[1767203486663,0.01144,87647.0,87645.0,8.072e-05]
[1767203486861,0.0002075,87653.0,87645.0,8.072e-05]
[1767203487064,0.0002075,87653.0,87645.0,0.19453921]
[1767203487587,0.0002075,87653.0,87652.0,0.4]
[1767203488405,0.0002075,87653.0,87652.0,0.399451]
[1767203488807,0.0002075,87653.0,87645.0,0.25659467]
[1767203489179,0.0002075,87653.0,87645.0,0.19453921]
[1767203489720,0.0066475,87656.0,87645.0,0.19453921]
[1767203490104,0.0066475,87656.0,87655.0,0.4]
[1767203490266,0.0066475,87656.0,87655.0,0.39945]
[1767203490474,0.01733829,87656.0,87655.0,0.39945]
[1767203491419,0.0066475,87656.0,87655.0,0.39945]
[1767203492601,0.01734017,87656.0,87655.0,0.39945]
[1767203493321,0.0066475,87656.0,87655.0,0.39945]
[1767203493833,0.0066475,87656.0,87645.0,0.19453921]
[1767203494417,0.0066475,87656.0,87645.0,8.072e-05]
[1767203494817,0.0066475,87656.0,87655.0,0.4]
[1767203496527,0.21145045,87656.0,87655.0,0.4]
[1767203496880,0.0066475,87656.0,87655.0,0.4]
[1767203500632,0.22214549,87656.0,87655.0,0.4]
[1767203501063,0.27918665,87656.0,87655.0,0.4]
[1767203501255,0.27918665,87656.0,87655.0,0.35]
[1767203503900,0.22214549,87656.0,87655.0,0.35]
[1767203504100,0.01734254,87656.0,87655.0,0.35]
[1767203505528,0.22214549,87656.0,87655.0,0.35]
[1767203506500,0.01734254,87656.0,87655.0,0.35]
[1767203508340,0.01734254,87656.0,87645.0,8.072e-05]
[1767203508540,0.42527039,87655.0,87645.0,8.072e-05]
[1767203508739,0.41457535,87655.0,87645.0,8.072e-05]
[1767203509167,0.01069988,87654.0,87645.0,8.072e-05]
[1767203509371,0.41457535,87655.0,87653.0,0.4]
[1767203509530,0.01069988,87654.0,87645.0,8.072e-05]
[1767203509733,0.0066475,87656.0,87645.0,8.072e-05]
[1767203509927,0.01069988,87655.0,87645.0,8.072e-05]
[1767203510154,0.01069988,87654.0,87645.0,8.072e-05]
[1767203510358,0.41457535,87655.0,87645.0,8.072e-05]
[1767203510554,0.01070149,87654.0,87645.0,8.072e-05]
[1767203510771,0.41457535,87655.0,87645.0,8.072e-05]
[1767203510999,0.01070149,87654.0,87645.0,8.072e-05]
[1767203511172,0.01070337,87653.0,87645.0,8.072e-05]
[1767203511342,0.03492681,87652.0,87645.0,8.072e-05]
[1767203512582,0.01070568,87651.0,87645.0,8.072e-05]
[1767203512801,0.21159543,87650.0,87645.0,8.072e-05]
[1767203513002,0.22303543,87649.0,87645.0,8.072e-05]
[1767203513188,0.20088975,87647.0,87645.0,8.072e-05]
[1767203513886,0.20088975,87647.0,87646.0,0.4]
[1767203514308,0.21160013,87647.0,87646.0,0.4]
[1767203514935,0.01071038,87647.0,87646.0,0.4]
[1767203515412,0.01071038,87647.0,87645.0,8.072e-05]
[1767203515612,0.01071038,87646.0,87645.0,8.072e-05]
[1767203515819,0.01071038,87647.0,87645.0,8.072e-05]
[1767203516591,0.01016138,87647.0,87645.0,8.072e-05]
[1767203517409,0.01016138,87647.0,87646.0,0.4]
[1767203517855,0.01144,87649.0,87646.0,0.4]
[1767203518050,0.01144,87649.0,87645.0,8.072e-05]
[1767203518430,0.01144,87649.0,87648.0,0.4]
[1767203518618,0.01144,87649.0,87648.0,0.399451]
[1767203519821,0.01144,87649.0,87645.0,8.072e-05]
[1767203520161,0.010891,87649.0,87645.0,8.072e-05]
[1767203522505,0.010891,87649.0,87637.0,0.17925787]
[1767203523745,0.010891,87649.0,87648.0,0.4]
[1767203524577,0.01144,87649.0,87648.0,0.4]
[1767203525119,0.01144,87649.0,87648.0,0.61017715]
[1767203525335,0.41457535,87658.0,87648.0,0.61017715]
[1767203525525,0.01144,87657.0,87648.0,0.21017715]
[1767203525733,0.01144,87656.0,87648.0,0.21017715]
[1767203525942,0.01144,87656.0,87655.0,0.4]
[1767203528862,0.022145,87656.0,87655.0,0.4]
[1767203529028,0.010705,87656.0,87655.0,0.4]
[1767203529233,0.01144,87656.0,87643.0,0.21017715]
[1767203529440,0.01070515,87655.0,87643.0,0.21017715]
[1767203529642,0.01070515,87655.0,87643.0,0.18917715]
[1767203530190,0.41457535,87653.0,87643.0,0.18917715]
[1767203530412,0.01015515,87652.0,87643.0,0.18917715]
[1767203530796,0.01015515,87652.0,87651.0,0.4]
[1767203533657,0.01015515,87652.0,87651.0,0.38856]
[1767203533859,0.01015515,87652.0,87637.0,0.21017715]
[1767203534062,0.41459206,87650.0,87637.0,0.21017715]
[1767203534580,0.01840455,87651.0,87632.0,0.21017715]
[1767203534743,0.41459206,87650.0,87634.0,0.21017715]
[1767203535153,0.01140862,87653.0,87634.0,0.21017715]
[1767203535354,0.41459206,87650.0,87634.0,0.21017715]
[1767203535556,0.41459206,87650.0,87644.0,0.21017715]
[1767203535778,0.41459206,87654.0,87644.0,0.21017715]
[1767203536622,0.41459206,87654.0,87653.0,0.4]
[1767203536804,0.01144,87656.0,87653.0,0.39945]
[1767203537011,0.01144,87656.0,87644.0,0.21017715]
[1767203537472,0.01144,87656.0,87655.0,0.4]
[1767203538916,0.08653769,87665.0,87655.0,0.4]
[1767203538917,0.01809405,87665.0,87656.0,0.000549]
[1767203539255,0.01809405,87665.0,87653.0,0.21017715]
[1767203539256,0.01144,87664.0,87653.0,0.21017715]
[1767203541553,0.0116425,87665.0,87664.0,0.000549]
[1767203542076,0.0116425,87665.0,87653.0,0.19986549]
[1767203542223,0.41459206,87663.0,87653.0,0.19986549]
[1767203542432,0.0107088,87662.0,87653.0,0.19986549]
[1767203542634,0.0101598,87661.0,87653.0,0.19986549]
[1767203542873,4.847e-05,87662.0,87661.0,0.00055]
[1767203543302,4.847e-05,87662.0,87653.0,0.19986549]
[1767203543659,4.847e-05,87662.0,87661.0,0.4]
[1767203544061,4.847e-05,87662.0,87653.0,0.19986549]
[1767203545118,0.0001457,87674.0,87662.0,0.19991349]
[1767203545472,0.01144,87673.0,87662.0,0.19986549]
[1767203545628,0.41459206,87672.0,87655.0,0.19986549]
[1767203545991,0.41459206,87672.0,87671.0,0.4]
[1767203546192,0.000549,87671.0,87655.0,0.19986549]
[1767203546546,0.01144,87673.0,87655.0,0.19986549]
[1767203547101,0.01144,87673.0,87672.0,0.4]
[1767203547301,0.01144,87673.0,87672.0,0.39949947]
[1767203547904,0.21554437,87673.0,87672.0,0.39949947]
[1767203548551,0.21554437,87673.0,87672.0,0.39945669]
[1767203549816,0.0001457,87674.0,87672.0,0.39945669]
[1767203550023,7e-07,87674.0,87672.0,4.847e-05]
[1767203551059,0.01155041,87683.0,87672.0,4.847e-05]
[1767203551060,0.0001457,87683.0,87672.0,4.847e-05]
[1767203551291,0.0001457,87683.0,87672.0,0.19991396]
[1767203551292,0.01144,87682.0,87672.0,0.19991396]
[1767203553046,0.42603206,87682.0,87672.0,0.19991396]
[1767203553671,0.42603206,87682.0,87677.0,0.4]
[1767203553922,0.10862714,87736.0,87677.0,0.4]
[1767203553923,0.0001457,87691.0,87678.0,0.19986549]
[1767203554052,0.0002081,87703.0,87692.0,0.19986549]
[1767203554468,0.0002081,87703.0,87702.0,0.4]
[1767203554677,0.0108837,87703.0,87702.0,0.3996525]
[1767203554997,0.21498807,87703.0,87702.0,0.3996525]
[1767203555166,0.01140237,87701.0,87687.0,0.19986549]
[1767203555380,0.01140263,87699.0,87687.0,0.19986549]
[1767203555717,0.01144,87698.0,87687.0,0.19986549]
[1767203556029,0.20410437,87697.0,87680.0,0.01144]
[1767203556244,0.41459206,87690.0,87680.0,0.01144]
[1767203556394,0.41404306,87690.0,87680.0,0.21130549]
[1767203556569,0.20410437,87697.0,87689.0,0.4]
[1767203556770,0.01144,87698.0,87697.0,0.20041549]
[1767203556995,0.01144,87698.0,87689.0,0.4]
[1767203556996,0.01144,87698.0,87692.0,0.19986549]
[1767203557332,0.0116481,87703.0,87689.0,0.19986549]
[1767203557527,0.01175432,87703.0,87689.0,0.19986549]
[1767203560170,0.15,87715.0,87703.0,0.00044378]
[1767203560171,0.01144,87712.0,87703.0,0.00044378]
[1767203560541,0.01144,87712.0,87699.0,0.19986549]
[1767203561355,0.42599326,87710.0,87699.0,0.19986549]
[1767203561611,0.20410437,87709.0,87689.0,0.19986549]
[1767203561766,0.41459206,87710.0,87689.0,0.20021991]